Cogmind - Beta 13 @@@ ROGUE MODE // 2024.04.09 @ 11:44:05 Player: Ben Meat Bible Result: Destroyed by Y-45 Defender with Heavy Assault Rifle Performance ------------- Evolutions (1) 500 Regions Visited (2) 400 Robots Destroyed (11) 55 Value Destroyed (258) 258 Prototype IDs (2) 40 Alien Tech Used (0) 0 Bonus (0) 0 TOTAL SCORE: 1253 Bonus ------- None Cogmind --------- Core Integrity 0/400 Matter 182/500 Energy 100/100 System Corruption 0% Temperature Cool (9) Movement Core (500) Ox9 Location -9/Materials Parts ------- > --- POWER (1) -------- (None) > --- PROPULSION (2) --- (None) > --- UTILITY (3) ------ Small Storage Unit Large Storage Unit High-capacity Matter Pod > --- WEAPON (3) ------- (None) > --- INVENTORY (15) --- (None) Peak State ------------ > --- POWER ------------ Ion Engine > --- PROPULSION ------- Wheel Wheel > --- UTILITY ---------- Large Storage Unit High-capacity Matter Pod > --- WEAPON ----------- Medium Laser Small Laser Grenade Launcher > --- INVENTORY -------- Light Ion Engine Small Storage Unit Assault Rifle [Rating: 8] Favorites ----------- Power Ion Engine Engine Ion Engine Propulsion Wheel Wheel Wheel Flight Unit Flight Unit Utility High-capacity Matter Pod Storage High-capacity Matter Pod Weapon Medium Laser Energy Gun Medium Laser Ballistic Gun Assault Rifle Launcher Grenade Launcher Build | -11 -10 -9 ------- Run | Yrd Mat Mat Slots Evolved 2 | . . 2 Power . | . . . Propulsion . | . . . Utility 1 | . . 1 Weapon 1 | . . 1 Parts Attached 15 | 6 3 6 Power 2 | 1 . 1 Engine 2 | 1 . 1 Core . | . . . Reactor . | . . . Propulsion 4 | 2 . 2 Treads . | . . . Leg . | . . . Wheel 2 | 2 . . Hover . | . . . Flight 2 | . . 2 Utility 4 | 1 2 1 Device . | . . . Storage 4 | 1 2 1 Processor . | . . . Hackware . | . . . Protection . | . . . Artifact . | . . . Weapon 5 | 2 1 2 Energy Gun 2 | 1 . 1 Energy Cannon . | . . . Ballistic Gun 2 | 1 . 1 Ballistic Cannon . | . . . Launcher 1 | . 1 . Special Weapon . | . . . Impact Weapon . | . . . Slashing Weapon . | . . . Piercing Weapon . | . . . Special Melee Weapon . | . . . Unidentified Prototypes . | . . . Parts Lost 10 | . . 10 Power 2 | . . 2 Propulsion 4 | . . 4 Utility . | . . . Weapon 4 | . . 4 Highest Loss Streak 6 | . . 6 To Critical Strikes . | . . . Average Slot Usage (%) 83 | . 100 69 Engine 10 | . 14 7 Wheel 17 | . 28 7 Storage 28 | . 28 29 Energy Gun 14 | . 14 15 Ballistic Gun 8 | . 12 4 Launcher 2 | . 1 2 Naked Turns . | . . . Heaviest Build 39 | 14 34 39 Greatest Support 20 | 20 20 20 Greatest Overweight (x) 12 | . 1 12 Average Overweight (x) 1 | . . 4 Largest Inventory Capacity 15 | 8 15 15 Average Capacity 13 | 6 13 15 Most Carried 4 | 2 4 3 Average Carried 1 | . 3 1 Final Capacity 15 | 8 15 15 Final Carried 4 | 2 4 . Class Distribution -------------------- 68% | Mutant 31% | Gunner Dominant Class ---------------- Mutant | -10/Materials Gunner | -9/Materials Resources | -11 -10 -9 ----------- Run | Yrd Mat Mat Matter Collected 283 | 226 45 12 Remotely . | . . . Salvage Created 246 | . 71 175 Parts 20 | . 5 15 Haulers Intercepted . | . . . Recyclers Shooed . | . . . Parts Field Recycled . | . . . Retrieved Matter . | . . . Parts Self-Destructed . | . . . Prevented . | . . . Kills | -11 -10 -9 ------- Run | Yrd Mat Mat Combat Hostiles Destroyed 10 | . 2 8 Guns 3 | . . 3 AOE 7 | . 2 5 Classes Destroyed 4 | . 2 2 Watcher 1 | . 1 . Swarmer 5 | . . 5 Grunt 3 | . 2 1 Sentry 2 | . . 2 Best Kill Streak 7 | . 2 7 Combat Bots Only 7 | . 2 7 Max Kills in Single Turn 3 | . 1 3 Gunslinging . | . . . Exploded 3 | . 1 3 Melee . | . . . Uniques/NPCs Destroyed . | . . . Combat | -11 -10 -9 -------- Run | Yrd Mat Mat Hostile Shots Fired 112 | . 4 108 Missed 33 | . 3 30 Damage Taken 1175 | . 35 1140 Core 416 | . 8 408 Absorbed by Shields . | . . . Core Remaining (%) 98 | 100 96 . Volleys Fired 31 | . 9 22 Largest 3 | . 2 3 Hottest 120 | . 80 120 Shots Fired 64 | . 18 46 Gun 59 | . 15 44 Cannon . | . . . Launcher 5 | . 3 2 Special . | . . . Kinetic 17 | . 6 11 Thermal 42 | . 9 33 Explosive 5 | . 3 2 Electromagnetic . | . . . Robot Hit Streak 11 | . 4 11 Robot Miss Streak 6 | . 6 3 Penetration Max . | . . . Secondary Targets . | . . . Shots Hit Robots 34 | . 7 27 Core Hits 16 | . 5 11 Critical Kills . | . . . Critical Parts Destroyed . | . . . Critical Strikes 3 | . . 3 Burn 3 | . . 3 Melee Attacks . | . . . Impact . | . . . Slashing . | . . . Piercing . | . . . Sneak Attacks . | . . . Combat Hostiles . | . . . Follow-up Attacks . | . . . Damage Inflicted 771 | . 217 554 Guns 388 | . 66 322 Cannons . | . . . Explosions 383 | . 151 232 Melee . | . . . Ramming . | . . . Kinetic 114 | . 27 87 Thermal 274 | . 39 235 Explosive 383 | . 151 232 Electromagnetic . | . . . Impact . | . . . Slashing . | . . . Piercing . | . . . Highest Corruption . | . . . Average Corruption . | . . . Corruption Purged . | . . . Corruption Blocked . | . . . Overload Shots . | . . . Overflow Damage . | . . . Projectiles . | . . . Explosions . | . . . Melee . | . . . Knockbacks . | . . . Impact . | . . . Kinetic . | . . . Secondary . | . . . Self-Inflicted Damage 24 | . 24 . Shots 1 | . 1 . Rammed . | . . . Targets Rammed . | . . . Kicked . | . . . Crushed . | . . . Highest Temperature 228 | . 60 228 Average Temperature 80 | . 19 103 Received Heat Transfer 402 | . 6 396 Siege Activations . | . . . Robots Corrupted . | . . . Combat Hostiles . | . . . Parts Fried . | . . . Impact Corruptions . | . . . Robots Melted . | . . . Combat Hostiles . | . . . Parts Melted 1 | . . 1 Heat Transferred 965 | . 111 854 Parts Sabotaged . | . . . Parts Stolen . | . . . Parts Stripped . | . . . Power Chain Reactions . | . . . Alert | -11 -10 -9 ------- Run | Yrd Mat Mat Peak Influence 261 | . 97 261 Initial 40 | . . 40 Average 99 | . 27 196 Maximum Alert Level 1 | . . 1 Low Security (%) 67 | 100 100 26 Level 1 32 | . . 73 Level 2 . | . . . Level 3 . | . . . Level 4 . | . . . Level 5 . | . . . High Security . | . . . Max Security . | . . . Squads Dispatched 2 | . 1 1 Investigation . | . . . Extermination . | . . . Reinforcement 2 | . 1 1 Assault . | . . . Garrison . | . . . Intercept . | . . . Searches Triggered . | . . . Construction Impeded . | . . . Haulers Reinforced . | . . . Active Scanning Responses . | . . . Cargo Convoy Interrupts . | . . . Stealth | -11 -10 -9 --------- Run | Yrd Mat Mat Distress Signals . | . . . Communications Jammed . | . . . Distress Signals . | . . . Times Spotted 14 | . 3 11 Peak Tracking Total 3 | . 2 3 Tactical Retreats . | . . . Traps | -11 -10 -9 ------- Run | Yrd Mat Mat Traps Triggered . | . . . Indirectly . | . . . Trap Hack Attempts . | . . . Triggered . | . . . Disarmed . | . . . Reprogrammed . | . . . Reused . | . . . Traps Extracted . | . . . Installed . | . . . Triggered . | . . . Machines | -11 -10 -9 ---------- Run | Yrd Mat Mat Machines Disabled . | . . . Max in Single Turn . | . . . Machines Repaired . | . . . Machines Dismantled . | . . . Machines Sabotaged . | . . . Overloaded Fab Kills . | . . . Hacking | -11 -10 -9 --------- Run | Yrd Mat Mat Machines Accessed 4 | . 4 . Terminals 3 | . 3 . Fabricators . | . . . Repair Stations . | . . . Recycling Units 1 | . 1 . Scanalyzers . | . . . Garrison Access . | . . . Total Hacks 14 | . 14 . Successful 8 | . 8 . Failed 6 | . 6 . Catastrophic . | . . . Database Lockouts . | . . . Manual . | . . . Terminals 13 | . 13 . Fabricators . | . . . Repair Stations . | . . . Recycling Units 1 | . 1 . Scanalyzers . | . . . Garrison Access . | . . . Terminal Hacks 7 | . 7 . Record 1 | . 1 . Prototype ID Bank 1 | . 1 . Locate Traps 1 | . 1 . Dispatch Records 1 | . 1 . Maintenance Status 1 | . 1 . Investigation Status 1 | . 1 . Registered Prototypes 1 | . 1 . Fabricator Hacks . | . . . Repair Station Hacks . | . . . Recycling Unit Hacks 1 | . 1 . Retrieve Components 1 | . 1 . Scanalyzer . | . . . Garrison Access Hacks . | . . . Unauthorized Hacks . | . . . Terminals . | . . . Fabricators . | . . . Repair Stations . | . . . Recycling Units . | . . . Scanalyzers . | . . . Garrison Access . | . . . Data Cores Recovered . | . . . Used . | . . . Hacking Detections 3 | . 3 . Full Trace Events . | . . . Feedback Events . | . . . Feedback Blocked . | . . . Robot Schematics Acquired . | . . . Robots Built . | . . . Authchips . | . . . Time . | . . . Total Robot Build Rating . | . . . Part Schematics Acquired . | . . . Parts Built . | . . . Authchips . | . . . Time . | . . . Total Part Build Rating . | . . . Parts Repaired . | . . . Time . | . . . Parts Recycled . | . . . Recycled Matter . | . . . Retrieved Matter . | . . . Retrieved Components 2 | . 2 . Parts Scanalyzed . | . . . Part Schematics Acquired . | . . . Parts Damaged . | . . . Bothacking | -11 -10 -9 ------------ Run | Yrd Mat Mat Used RIF Installer . | . . . Robots Hacked . | . . . Non-combat . | . . . Combat . | . . . Robot Hacks Applied . | . . . Relay Couplers Released . | . . . Fabnet Peak Effective % . | . . . Robots Rewired . | . . . Allies Hacked . | . . . Hacks Repelled . | . . . Allies | -11 -10 -9 -------- Run | Yrd Mat Mat Total Allies . | . . . Largest Group . | . . . Highest-Rated Group . | . . . Highest-Rated Ally . | . . . Total Orders . | . . . Ally Attacks . | . . . Total Damage . | . . . Kills . | . . . Allies Corrupted . | . . . Allies Melted . | . . . Intel | -11 -10 -9 ------- Run | Yrd Mat Mat Robot Analysis Total . | . . . Derelict Logs Recovered . | . . . Drone Launches . | . . . Drone Recoveries . | . . . Exploration | -11 -10 -9 ------------- Run | Yrd Mat Mat Turns Passed 431 | 59 179 193 Spaces Moved 265 | 61 153 51 Core 17 | 3 . 14 Treads . | . . . Legs . | . . . Wheels 246 | 58 153 35 Hover . | . . . Flight 2 | . . 2 Fastest Speed 50 | 50 80 95 Average Speed 118 | 78 90 247 Slowest Speed 760 | 80 95 760 Overloaded Moves . | . . . Propulsion Burnouts . | . . . Robots Hopped . | . . . Cave-ins Triggered . | . . . Exploration Rate (%) 13 | 4 28 8 Regions Visited 2 Branch Regions . Pre-discovered Areas . | . . . Known Exits Taken . | . . . Unknown Exits Taken 2 | 1 1 . Scrap Searched . | . . . Spaces Dug . | . . . Terrain Destroyed 26 | . 11 15 Melee . | . . . Projectile . | . . . AOE 26 | . 11 15 Terrain Rammed . | . . . Walls Destroyed . | . . . Machines Disabled . | . . . Actions | -11 -10 -9 --------- Run | Yrd Mat Mat Total 322 | 68 175 79 Wait 8 | . 8 . Move 263 | 60 152 51 Hop . | . . . Pick Up 3 | 2 1 . Fast Attach 10 | 6 2 2 Attach 5 | . 1 4 Detach 2 | . 2 . Swap . | . . . Drop . | . . . Fire 31 | . 9 22 Melee . | . . . Ram . | . . . Kick . | . . . Crush . | . . . Escape Stasis . | . . . Rewire . | . . . Trap . | . . . Miscellaneous . | . . . Route ------- -11/Scrapyard -10/Materials -9/Materials History --------- Turn | Location | Event 20 | -11/Scrapyard | Discovered new exit (range 16) 60 | -11/Scrapyard | Entered Materials 189 | -10/Materials | Discovered new exit (range 15) 239 | -10/Materials | Entered another Materials area 239 | -9/Materials | Evolved 2 slots: Utility x1, Weapon x1 316 | -9/Materials | Destroyed 7 combat bots 406 | -9/Materials | Core integrity fell below 50% 416 | -9/Materials | Lost 6 parts (1p2n3w) 425 | -9/Materials | Core integrity fell below 20% 432 | -9/Materials | Destroyed by Y-45 Defender with Heavy Assault Rifle Last Messages --------------- Critical hit (Burn: +37). Acquired Flight Unit. Med. Laser destroyed. Acquired Flight Unit. Sml. Laser destroyed. Lgt. Ion Engine destroyed. Flight Unit destroyed. Critical hit (Burn: +37). Assault Rifle destroyed. U-05 Engineer builds a Wall. Flight Unit destroyed. U-05 Engineer lays Concrete. U-05 Engineer builds a Wall. U-05 Engineer lays Concrete. U-05 Engineer builds a Wall. Neutrino Reactor explodes. Door malfunctions. Acquired 2 matter. Critical hit (Burn: +37). U-05 Engineer repairs door. Map ----- +----------------------------------------------------+ | | | | | | | ?????????????????????????????????????????????? | | ?????????????????????????????????????????????? | | ?????????????????????????????????????????????? | | ?????????????????????????????????????????????? | | ?????????????????????????????????????????????? | | ?????????????????????????????????????????????? | | ???????????????"?????????????????????????????? | | ??????????????# ?????????????????????????????? | | ??????????????# ?????????? ??????????????????? | | ??????????????? ?????????? ??????????????????? | | #############?? ????????? #?????????????????? | | #?? #???????? #?????????????????? | | #?? #???????? #?????????????????? | | """ #?? ???????? #?????????????????? | | [| """ #### #???????? #?????????????????? | | !| """ + #?#######;#####?????????????? | | #### ### #?????????????? | | ##########+##?##u### #?????????????? | | ?????????# #??## # ! ##????????????? | | ?????????# #??## = u = =%#????????????? | | ?????????# #??## #Yu %[!!*#?????????????? | | ?????????# #??## # % =!* #?????????????? | | ?????????# #??## # Y @ !* #?????????????? | | ?????????# #??## #############?????????????? | | ?????????# #???# #### [#????????????????? | | ?????????# #???# ? %#????????????????? | | ?????????? ????# T = ?????????????? | | ?????????? ????# #####????????????? | | ?????????? ????######## #????????????????? | | ??????????#???????????## ##????????????????? | | ???????????????????????? #?????????????????? | | ???????????????????????? = #?????????????????? | | ???????????????????????? % #?????????????????? | | ???????????????????????? = #?????????????????? | | ???????????????????????? #?????????????????? | | ???????????????????????? #?????????????????? | | ???????????????????????? ?????????????????? | | ????????????????????????? ?????????????????? | | ????????????????????????? ?????????????????? | | ????????????????????????? ???????????????????? | | ?????????????????????????????????????????????? | | ?????????????????????????????????????????????? | | ?????????????????????????????????????????????? | | ?????????????????????????????????????????????? | | ?????????????????????????????????????????????? | | ?????????????????????????????????????????????? | | ?????????????????????????????????????????????? | +----------------------------------------------------+ Best States ------------- Heat Dissipation 28 Energy Generation 10 Energy Capacity 250 Matter Stores 266 Matter Capacity 500 Sight Range 16 Terrain Scan Density 10 Evasion (%) 44 Item Schematics ----------------- None Robot Schematics ------------------ None Fabricated ------------ Nothing Alien Tech Used ----------------- None Achievements -------------- None Challenges ------------ None Game ------ Seed MatterSmallCompactor Manual? 0 Play Time 00:10:28 Cumulative 3.7 hours Start 2024.04.09 @ 11:16:54 End 2024.04.09 @ 11:44:05 Sessions 1 Manual Loads 0 Difficulty Rogue Special Mode None Game No. 8 Rogue 8 Adventurer 0 Explorer 0 Win Type - Total 0 Types 0/0/0/0/0/0/0/0/0 Lore% 10 Gallery% 9 Achievement% 8 Wizard Run 0 Options --------- Layout 0 ASCII 0 Keyboard 1 Movement Numpad Keybinds 0 Fullscreen 1 Font 18/SmallcapsGlow Map View 76x50 Zoom Use 0% Tactical HUD 0 Map Filters NONE Filters NONE Steam 1 RUN: c3564524-af1e-473c-848d-9b8aef689db1